Cogmind - Beta 15 @@@ ROGUE MODE // 2025.07.24 @ 12:36:28 Player: beans Result: Destroyed by G-34 Mercenary with Small Laser Performance ------------- Evolutions (0) 0 Regions Visited (1) 200 Robots Destroyed (15) 75 Value Destroyed (266) 266 Prototype IDs (0) 0 Alien Tech Used (0) 0 Bonus (0) 0 TOTAL SCORE: 541 Bonus ------- None Cogmind --------- Core Integrity 0/250 Matter 300/300 Energy 100/100 System Corruption 0% Temperature Cool (12) Movement Core (50) Location -10/Materials Parts ------- > --- POWER (1) -------- (None) > --- PROPULSION (2) --- (None) > --- UTILITY (2) ------ Heat Sink > --- WEAPON (2) ------- Mining Claw > --- INVENTORY (5) ---- (None) Peak State ------------ > --- POWER ------------ Ion Engine > --- PROPULSION ------- Light Treads Light Treads > --- UTILITY ---------- (None) > --- WEAPON ----------- Medium Laser Medium Laser > --- INVENTORY -------- (None) [Rating: 5] Favorites ----------- Power Ion Engine Engine Ion Engine Propulsion Light Treads Treads Light Treads Utility Heat Sink Device Heat Sink Weapon Medium Laser Energy Gun Medium Laser Slashing Weapon Mining Claw Build | -11 -10 ------- Run | Yrd Mat Slots Evolved . | . . Power . | . . Propulsion . | . . Utility . | . . Weapon . | . . Parts Attached 7 | 5 2 Power 1 | 1 . Engine 1 | 1 . Core . | . . Reactor . | . . Propulsion 2 | 2 . Treads 2 | 2 . Leg . | . . Wheel . | . . Hover . | . . Flight . | . . Utility 1 | . 1 Device 1 | . 1 Storage . | . . Processor . | . . Hackware . | . . Protection . | . . Artifact . | . . Weapon 3 | 2 1 Energy Gun 2 | 2 . Energy Cannon . | . . Ballistic Gun . | . . Ballistic Cannon . | . . Launcher . | . . Special Weapon . | . . Impact Weapon . | . . Slashing Weapon 1 | . 1 Piercing Weapon . | . . Special Melee Weapon . | . . Unidentified Prototypes . | . . Parts Lost 5 | . 5 Power 1 | . 1 Propulsion 2 | . 2 Utility . | . . Weapon 2 | . 2 Highest Loss Streak 4 | . 4 To Critical Strikes . | . . Average Backups . | . . Power . | . . Propulsion . | . . Utility . | . . Weapon . | . . Tool/Special . | . . Unused Backups 1 | 1 . Power . | . . Propulsion . | . . Utility . | . . Weapon 1 | 1 . Tool/Special . | . . Average Slot Usage (%) 49 | . 49 Engine 8 | . 8 Treads 14 | . 14 Device 4 | . 4 Energy Gun 18 | . 18 Slashing Weapon 2 | . 2 Peak Build Rating 5 | 5 5 Average Rating 3 | 4 3 On Entrance 2 | . 5 Naked Turns . | . . Heaviest Build 9 | 9 9 Greatest Support 40 | 40 40 Greatest Overweight (x) 2 | . 2 Average Overweight (x) . | . . Largest Inventory Capacity 5 | 5 5 Average Capacity 5 | 5 5 Most Carried 4 | 4 1 Average Carried . | . . Final Capacity 5 | 5 5 Final Carried . | . . Class Distribution -------------------- 100% | Mutant Dominant Class ---------------- Mutant | -10/Materials Resources | -11 -10 ----------- Run | Yrd Mat Matter Collected 270 | 250 20 Remotely . | . . Salvage Created 621 | 140 481 Parts 28 | 8 20 Haulers Intercepted 1 | . 1 Recyclers Shooed 1 | . 1 Parts Field Recycled . | . . Retrieved Matter . | . . Parts Self-Destructed . | . . Prevented . | . . Kills | -11 -10 ------- Run | Yrd Mat Combat Hostiles Destroyed 6 | . 6 Melee 1 | . 1 Guns 3 | . 3 Classes Destroyed 6 | 3 3 Worker 3 | 1 2 Builder 1 | . 1 Tunneler 2 | 2 . Hauler 1 | . 1 Recycler 2 | 1 1 Grunt 6 | . 6 Best Kill Streak 5 | 2 5 Combat Bots Only 2 | . 2 Max Kills in Single Turn 1 | 1 1 Gunslinging . | . . Exploded . | . . Melee 1 | . 1 Uniques/NPCs Destroyed . | . . Combat | -11 -10 -------- Run | Yrd Mat Hostile Shots Fired 73 | . 73 Missed 14 | . 14 Hits 59 | . 59 Projectile 59 | . 59 Critical Strikes 1 | . 1 Damage Taken 759 | . 759 Core 250 | . 250 Absorbed by Shields . | . . Core Remaining (%) 100 | 100 . Volleys Fired 50 | 9 41 Largest 2 | 2 2 Hottest 100 | 100 100 Shots Fired 81 | 18 63 Gun 81 | 18 63 Cannon . | . . Launcher . | . . Special . | . . Kinetic . | . . Thermal 81 | 18 63 Explosive . | . . Electromagnetic . | . . Robot Hit Streak 10 | 3 10 Robot Miss Streak 3 | 2 3 Penetration Max . | . . Secondary Targets . | . . Shots Hit Robots 60 | 12 48 Core Hits 22 | 3 19 Critical Kills . | . . Critical Parts Destroyed . | . . Critical Strikes 9 | 3 6 Burn 9 | 3 6 Melee Attacks 15 | . 15 Impact . | . . Slashing 15 | . 15 Piercing . | . . Sneak Attacks 6 | . 6 Combat Hostiles . | . . Follow-up Attacks . | . . Damage Inflicted 993 | 147 846 Guns 619 | 147 472 Cannons . | . . Explosions . | . . Melee 374 | . 374 Ramming . | . . Kinetic . | . . Thermal 619 | 147 472 Explosive . | . . Electromagnetic . | . . Impact . | . . Slashing 374 | . 374 Piercing . | . . Highest Corruption . | . . Average Corruption . | . . Corruption Purged . | . . Corruption Blocked . | . . Overload Shots . | . . Overflow Damage 20 | . 20 Projectiles . | . . Explosions . | . . Melee 20 | . 20 Knockbacks . | . . Impact . | . . Kinetic . | . . Secondary . | . . Self-Inflicted Damage . | . . Shots . | . . Rammed . | . . Targets Rammed . | . . Kicked . | . . Crushed . | . . Highest Temperature 470 | 156 470 Average Temperature 199 | 59 244 Received Heat Transfer 441 | . 441 Effects 8 | . 8 Energy Bleed 1 | . 1 Interference 5 | . 5 Short Circuit 1 | . 1 Damage (minor) 1 | . 1 Siege Activations . | . . Martial Activations . | . . Shielding Activations . | . . Robots Disrupted . | . . Combat Hostiles . | . . Robots Corrupted . | . . Combat Hostiles . | . . Parts Fried . | . . Impact Corruptions . | . . Robots Melted 3 | 1 2 Combat Hostiles 2 | . 2 Parts Melted 6 | 1 5 Heat Transferred 2516 | 666 1850 Parts Sabotaged . | . . Parts Stolen . | . . Parts Stripped . | . . Power Chain Reactions . | . . Alert | -11 -10 ------- Run | Yrd Mat Maximum Alert Level . | . . Low Security (%) 100 | 100 100 Level 1 . | . . Level 2 . | . . Level 3 . | . . Level 4 . | . . Level 5 . | . . High Security . | . . Max Security . | . . Peak Influence 41 | 5 41 Initial 3 | . 3 Average 10 | 2 13 Influence Increases 203 | 20 183 Destroy 0b10 Robot/C 120 | . 120 Destroy 0b10 Robot/NC 45 | 20 25 Destroy Leader 22 | . 22 Destroy Structure 1 | . 1 Partial Spotted 15 | . 15 Influence Decreases 177 | 15 162 Entered New Map 2 | . 2 Time Decay 135 | 15 120 Lost Part 40 | . 40 Squads Dispatched 1 | . 1 Investigation . | . . Extermination . | . . Reinforcement 1 | . 1 Assault . | . . Garrison . | . . Intercept . | . . Searches Triggered . | . . Construction Impeded . | . . Haulers Reinforced . | . . Active Scanning Responses . | . . Cargo Convoy Interrupts . | . . Stealth | -11 -10 --------- Run | Yrd Mat Distress Signals 4 | . 4 Communications Jammed . | . . Distress Signals . | . . Times Spotted 12 | . 12 Peak Tracking Total 4 | . 4 Tactical Retreats . | . . Traps | -11 -10 ------- Run | Yrd Mat Traps Triggered . | . . Indirectly . | . . Trap Hack Attempts . | . . Triggered . | . . Disarmed . | . . Reprogrammed . | . . Reused . | . . Traps Extracted . | . . Installed . | . . Triggered . | . . Machines | -11 -10 ---------- Run | Yrd Mat Machines Disabled . | . . Max in Single Turn . | . . Machines Repaired . | . . Machines Dismantled . | . . Machines Sabotaged . | . . Overloaded Fab Kills . | . . Hacking | -11 -10 --------- Run | Yrd Mat Machines Accessed . | . . Terminals . | . . Fabricators . | . . Repair Stations . | . . Recycling Units . | . . Scanalyzers . | . . Garrison Access . | . . Total Hacks . | . . Successful . | . . Failed . | . . Catastrophic . | . . Database Lockouts . | . . Manual . | . . Terminals . | . . Fabricators . | . . Repair Stations . | . . Recycling Units . | . . Scanalyzers . | . . Garrison Access . | . . Terminal Hacks . | . . Fabricator Hacks . | . . Repair Station Hacks . | . . Recycling Unit Hacks . | . . Scanalyzer . | . . Garrison Access Hacks . | . . Unauthorized Hacks . | . . Terminals . | . . Fabricators . | . . Repair Stations . | . . Recycling Units . | . . Scanalyzers . | . . Garrison Access . | . . Data Cores Recovered . | . . Used . | . . Hacking Detections . | . . Full Trace Events . | . . Feedback Events . | . . Feedback Blocked . | . . Robot Schematics Acquired . | . . Robots Built . | . . Authchips . | . . Time . | . . Total Robot Build Rating . | . . Part Schematics Acquired . | . . Parts Built . | . . Authchips . | . . Time . | . . Total Part Build Rating . | . . Parts Repaired . | . . Time . | . . Parts Recycled . | . . Recycled Matter . | . . Retrieved Matter . | . . Retrieved Components . | . . Parts Scanalyzed . | . . Part Schematics Acquired . | . . Parts Damaged . | . . Bothacking | -11 -10 ------------ Run | Yrd Mat Used RIF Installer . | . . Robots Hacked . | . . Non-combat . | . . Combat . | . . Robot Hacks Applied . | . . Relay Couplers Released . | . . Fabnet Peak Effective % . | . . Robots Rewired . | . . Allies Hacked . | . . Hacks Repelled . | . . Allies | -11 -10 -------- Run | Yrd Mat Total Allies . | . . Largest Group . | . . Highest-Rated Group . | . . Highest-Rated Ally . | . . Total Orders . | . . Ally Attacks . | . . Total Damage . | . . Kills . | . . Allies Corrupted . | . . Allies Melted . | . . Intel | -11 -10 ------- Run | Yrd Mat Active Infowar (turns) . | . . Robot Analysis Total . | . . Derelict Logs Recovered . | . . Drone Launches . | . . Drone Recoveries . | . . Exploration | -11 -10 ------------- Run | Yrd Mat Turns Passed 404 | 113 291 Spaces Moved 200 | 52 148 Core 125 | 15 110 Treads 75 | 37 38 Legs . | . . Wheels . | . . Hover . | . . Flight . | . . Fastest Speed 50 | 50 50 Average Speed 91 | 128 78 Slowest Speed 160 | 160 160 Overloaded Moves . | . . Propulsion Burnouts . | . . Robots Hopped . | . . Potential Cave-ins . | . . Cave-ins Triggered . | . . Exploration Rate (%) 10 | 4 16 Regions Visited 1 Branch Regions . Pre-discovered Areas . | . . Known Exits Taken . | . . Unknown Exits Taken 1 | 1 . Scrap Searched . | . . Spaces Dug 1 | . 1 Terrain Destroyed 1 | . 1 Melee 1 | . 1 Projectile . | . . AOE . | . . Terrain Rammed . | . . Walls Destroyed . | . . Machines Disabled . | . . Actions | -11 -10 --------- Run | Yrd Mat Total 310 | 81 229 Wait 30 | 9 21 Move 199 | 51 148 Hop . | . . Pick Up 8 | 6 2 Fast Attach . | . . Attach 7 | 5 2 Detach . | . . Swap . | . . Drop 1 | 1 . Fire 50 | 9 41 Melee 15 | . 15 Ram . | . . Kick . | . . Crush . | . . Escape Stasis . | . . Rewire . | . . Trap . | . . Miscellaneous . | . . Route ------- -11/Scrapyard -10/Materials History --------- Turn | Location | Event 8 | -11/Scrapyard | Discovered new exit (range 16) 114 | -11/Scrapyard | Entered Materials 279 | -10/Materials | Core integrity fell below 50% 311 | -10/Materials | Lost 4 parts (1p2n1w) 321 | -10/Materials | Build established: Mutant 402 | -10/Materials | Core integrity fell below 20% 405 | -10/Materials | Destroyed by G-34 Mercenary with Small Laser Last Messages --------------- K-01 Serf collects debris. R-06 Scavenger collects Ion Engine. Sneak attack on R-06 Scavenger. R-06 Scavenger destroyed. K-01 Serf collects debris. Acquired 10 matter. K-01 Serf collects debris. Sneak attack on K-01 Serf. K-01 Serf destroyed. K-01 Serf collects debris. Sneak attack on K-01 Serf. K-01 Serf destroyed. U-05 Engineer builds a Wall. Sneak attack on U-05 Engineer. Destroyed Lgt. Ion Engine. W-16 Scout sends out distress signal. Sneak attack on U-05 Engineer. Destroyed Wheel. R-06 Scavenger collects Wheel. R-06 Scavenger collects Com. Wheel. Map ----- +----------------------------------------------------+ | ????????????########?????????????????????????????? | | ????????????# #?????????????????????????????? | | ????????????# """ #?????????????????????????????? | | ????????????# "T" #?????????????????????????????? | | ????????????# #######???#####???????????????? | | ????????????# ##!!!!##??# #???????????????? | | ????????????# #! !#??# #???????????????? | | ????????????#####+## #??# #???????????????? | | ????????????????# #???# #### +???????????????? | | ????????????????# #???# #???????????????? | | ????????????????# ##### #???????????????? | | ????????????????# % #???????????????? | | ?????????????########## %% #???????????????? | | ?????????????# # """" #???????????????? | | ?????????????# """ # """" % #???????????????? | | ?????????????# = """ # """" % #???????????????? | | ?????????????# """ # = ! #####???????????? | | ???????????# + + %%*[*= +???????????? | | ?????????????# "" """ # r==%=!!#####???????????? | | ?????????????# "T """ # #####+#####????????????? | | ?????????????# "" """ # ## *% #????????????? | | ?????????????# # ## #????????????? | | ?????????????###+###### w ## #????????????? | | ???????????????# ?????# ## !#????????????? | | ???????????????#??????# ## // #????????????? | | ??????????????????????# @## // #????????????? | | ?????????????????????# g # // #????????????? | | ??????????????????? # #????????????? | | ???????????????? gT + "T" #????????????? | | ?????????????? ##########????????????? | | ?????????????######### u #?????????????????????? | | ?????????????????????###+###?????????????????????? | | ???????????????????????? ????????????????????????? | | ???????????????????????? ????????????????????????? | | ???????????????????????? ????????????????????????? | | ?????????????????????????????????????????????????? | | ?????????????????????????????????????????????????? | | ?????????????????????????????????????????????????? | | ?????????????????????????????????????????????????? | | ?????????????????????????????????????????????????? | | ?????????????????????????????????????????????????? | | ?????????????????????????????????????????????????? | | ?????????????????????????????????????????????????? | | ?????????????????????????????????????????????????? | | ?????????????????????????????????????????????????? | | ?????????????????????????????????????????????????? | | ?????????????????????????????????????????????????? | | ?????????????????????????????????????????????????? | | ?????????????????????????????????????????????????? | | ?????????????????????????????????????????????????? | +----------------------------------------------------+ Best States ------------- Heat Dissipation 35 Energy Generation 10 Energy Capacity 250 Matter Stores 300 Matter Capacity 300 Sight Range 16 Terrain Scan Density 10 Evasion (%) 50 Recoil Reduction 2 Item Schematics ----------------- None Robot Schematics ------------------ None Fabricated ------------ Nothing Repaired ---------- Nothing Alien Tech Used ----------------- None Achievements -------------- None Challenges ------------ None Game ------ Seed DecoderDisruptorCycler Manual? 0 Play Time 00:05:52 Cumulative 67.9 hours Start 2025.07.24 @ 12:33:02 End 2025.07.24 @ 12:36:28 Sessions 1 Manual Loads 0 Difficulty Rogue Special Mode None Game No. 282 Rogue 282 Adventurer 0 Explorer 0 Win Type - Total 0 Types 0/0/0/0/0/0/0/0/0/0 Lore% 43 Gallery% 32 Achievement% 26 Wizard Run 0 Options --------- Layout 2 ASCII 0 Keyboard 0 Movement Mouse Keybinds 0 Fullscreen 1 Font 24/Terminus Map View 50x44 Zoom Use 0% Tactical HUD 0 Map Filters NONE Filters NONE Steam 1 RUN: 9db8cbe7-6c59-4e49-8bfa-290ba1c519fc